bitfinex/quotes_ETHUSD_20260307
["timestamp","ask_amount","ask_price","bid_price","bid_amount"]
[1772914905214,0.00153886,1964.0,1963.1,4.46456218]
[1772914906125,4.51847547,1964.0,1963.3,4.45064494]
[1772914908647,4.51847547,1964.0,1963.5,4.42332195]
[1772914910845,4.51847547,1964.0,1963.6,1.27317172]
[1772914911031,4.51847547,1964.0,1963.7,4.38311273]
[1772914912938,4.51847547,1964.0,1963.5,4.35699482]
[1772914912939,4.51693661,1963.9,1963.5,4.35699482]
[1772914913136,0.00153886,1964.0,1963.5,4.35699482]
[1772914913869,4.51793661,1964.4,1963.5,4.35699482]
[1772914915026,4.51793661,1964.4,1963.7,4.32992433]
[1772914916950,4.51793661,1964.4,1963.8,1.27304206]
[1772914917153,4.51793661,1964.4,1963.9,4.30471508]
[1772914917651,0.001,1964.3,1963.9,4.30471508]
[1772914919362,4.51793661,1964.3,1964.0,5.55289304]
[1772914923045,0.001,1964.3,1964.1,4.21403402]
[1772914924056,4.34949527,1964.3,1963.9,4.20248198]
[1772914924839,5.62221639,1964.3,1963.9,4.20248198]
[1772914925159,4.34949527,1964.3,1963.9,5.47543488]
[1772914925626,4.34849527,1964.2,1963.7,1.69]
[1772914926031,4.34849527,1964.2,1963.5,5.46420678]
[1772914927732,1.27284761,1964.1,1963.5,5.46420678]
[1772914927963,4.34849527,1964.0,1963.5,5.46420678]
[1772914930163,4.34849527,1963.9,1963.6,0.001]
[1772914930752,4.34849527,1963.9,1963.3,0.001]
[1772914931064,4.34849527,1963.8,1963.3,0.001]
[1772914932064,4.34849527,1963.6,1963.3,0.001]
[1772914932633,4.34849527,1963.6,1963.0,0.00263886]
[1772914932634,5.25775391,1963.6,1963.0,0.00263886]
[1772914932833,5.25775391,1963.6,1963.0,5.41592273]
[1772914932834,4.34849527,1963.6,1963.0,5.41592273]
[1772914933654,4.34849527,1963.6,1963.0,1.27618908]
[1772914935669,4.34849527,1963.4,1963.0,1.27618908]
[1772914942858,4.34849527,1963.4,1963.1,0.0011]
[1772914943058,4.34949527,1963.3,1963.1,0.0011]
[1772914945674,4.34849527,1963.2,1963.1,0.0011]
[1772914946684,0.001,1963.3,1963.1,4.0070638]
[1772914947386,0.001,1963.3,1963.1,0.0011]
[1772914947575,4.34949527,1963.3,1963.1,0.0011]
[1772914948095,0.001,1963.3,1963.1,0.0011]
[1772914948681,4.34949527,1963.3,1963.1,0.0011]
[1772914949993,4.34949527,1963.3,1963.1,1.274596]
[1772914950201,0.001,1963.3,1963.2,3.96782811]
[1772914950381,4.34849527,1963.7,1963.2,3.96782811]
[1772914952996,4.34849527,1963.7,1963.3,5.20603435]
[1772914953297,4.34849527,1963.7,1963.4,3.93266808]
[1772914953776,4.34849527,1963.7,1963.3,1.27336627]
[1772914954096,4.34849527,1963.7,1963.3,5.19709989]
[1772914955369,4.60121746,1963.6,1963.3,5.19709989]
[1772914956198,4.60121746,1963.6,1963.2,1.27337179]
[1772914957771,4.60021746,1963.5,1963.1,0.0011]
[1772914958484,4.60021746,1963.5,1963.1,1.27457899]
[1772914959771,1.27325469,1963.5,1963.1,1.27457899]
[1772914959971,4.60021746,1963.4,1963.1,1.27457899]
[1772914960570,4.60021746,1963.4,1963.1,0.0011]
[1772914961904,4.60021746,1963.5,1963.1,0.0011]
[1772914962084,4.60021746,1963.4,1963.1,0.0011]
[1772914964197,4.60021746,1963.3,1963.1,0.0011]
[1772914964401,4.60021746,1963.3,1963.0,0.00263886]
[1772914967506,4.60021746,1963.2,1963.1,0.0011]
[1772914970008,5.87364859,1963.2,1963.1,0.0011]
[1772914970696,4.60021746,1963.1,1962.9,0.0011]
[1772914970896,4.60021746,1963.1,1962.8,0.0011]
[1772914971276,5.50845552,1963.1,1962.7,0.0011]
[1772914971495,4.60021746,1963.1,1962.7,0.0011]
[1772914972323,4.60021746,1963.0,1962.7,3.74841799]
[1772914972485,4.60021746,1963.2,1962.7,3.74841799]
[1772914972804,4.60021746,1963.3,1962.7,3.74841799]
[1772914973920,4.60021746,1963.5,1962.7,3.74841799]
[1772914974304,4.60021746,1963.5,1962.9,3.7320979]
[1772914975806,5.87346032,1963.5,1962.9,3.7320979]
[1772914975996,4.60021746,1963.4,1962.9,3.7320979]
[1772914976395,4.60021746,1963.4,1963.0,1.27356087]
[1772914976790,4.60021746,1963.4,1963.1,3.70959828]
[1772914977610,5.87352326,1963.4,1963.1,3.70959828]
[1772914978311,4.60021746,1963.4,1963.1,3.70959828]
[1772914979210,4.60121746,1963.4,1963.1,3.70959828]
[1772914979595,5.87452217,1963.4,1963.1,3.70959828]
[1772914980023,4.60121746,1963.4,1963.1,3.70959828]
[1772914983231,4.60121746,1963.4,1963.1,4.98308897]
[1772914983417,0.001,1963.4,1963.2,3.65311238]
[1772914984631,0.001,1963.4,1963.1,4.91973874]
[1772914985198,4.40018977,1963.4,1963.0,4.91410144]
[1772914985838,4.40018977,1963.4,1963.1,3.63945223]
[1772914986907,0.001,1963.4,1963.1,3.63945223]
[1772914987114,0.001,1963.6,1963.3,3.6249999]
[1772914987298,4.40018977,1963.6,1963.3,3.6249999]
[1772914987624,4.40018977,1963.6,1963.2,3.6249999]
[1772914990131,1.27448467,1964.0,1963.3,4.30015433]
[1772914990315,4.39918977,1963.9,1963.3,4.30015433]
[1772914993719,4.40072863,1964.0,1963.5,4.30015433]
[1772914993918,4.39918977,1963.9,1963.5,4.30015433]
[1772914994726,4.39918977,1963.9,1963.3,4.30015433]
[1772914994927,4.39918977,1963.9,1963.3,5.5735172]
[1772914995124,4.39918977,1963.9,1963.4,4.30015433]
[1772914995822,4.40072863,1964.0,1963.6,4.30015433]
[1772914996028,5.67364909,1964.0,1963.6,4.30015433]
[1772914997171,4.40118977,1964.2,1963.6,4.30015433]
[1772914997457,4.40118977,1964.2,1963.5,1.27323656]
[1772914997458,0.001,1964.4,1963.8,4.30015433]
[1772914998039,0.001,1964.4,1964.0,4.30015433]
[1772915000434,0.001,1964.4,1964.1,1.27284761]
[1772915000771,0.001,1964.4,1964.2,4.30015433]
[1772915002572,0.001,1964.4,1964.2,5.57292919]
[1772915002785,0.001,1964.4,1964.3,4.30015433]
[1772915003986,1.27349801,1964.7,1964.3,4.30015433]
[1772915003987,0.001,1964.7,1964.3,4.30015433]
[1772915005959,0.001,1964.7,1964.3,1.27265883]
[1772915006273,0.001,1964.7,1964.4,4.30015433]
[1772915008764,4.40018977,1964.7,1964.4,4.30015433]
[1772915011072,4.40018977,1964.7,1964.4,5.57280292]
[1772915011255,0.001,1964.7,1964.4,5.57280292]
[1772915011453,0.001,1964.7,1964.5,4.30015433]
[1772915012438,0.001,1964.7,1964.3,1.27267196]
[1772915012641,0.001,1964.7,1964.4,4.2343773]
[1772915015375,0.002,1964.6,1964.4,4.2343773]
[1772915017986,0.002,1964.6,1964.5,4.2343773]
[1772915018803,0.002,1964.6,1964.2,5.9243773]
[1772915018804,4.42756274,1964.6,1964.2,5.9243773]
[1772915019298,4.42756274,1964.6,1964.2,4.2343773]
[1772915019499,4.42756274,1964.6,1964.2,5.50715703]
[1772915020076,4.42756274,1964.6,1964.3,4.2343773]
[1772915021202,5.70009766,1964.6,1964.3,4.2343773]
[1772915025108,4.42556274,1964.5,1964.1,1.27384259]
[1772915025408,5.70009766,1964.6,1964.2,4.2343773]
[1772915025811,4.42556274,1964.5,1964.1,0.001]
[1772915027693,4.42556274,1964.3,1964.1,0.001]
[1772915029796,5.69834555,1964.2,1964.1,0.001]
[1772915032418,0.002,1964.6,1964.1,4.2353773]
[1772915032617,1.27455715,1964.6,1964.1,4.2353773]
[1772915032818,5.70011989,1964.6,1964.1,4.2353773]
[1772915032992,4.42556274,1964.5,1964.1,4.2353773]
[1772915034617,1.27265322,1964.4,1964.1,4.2353773]
[1772915037118,4.42556274,1964.5,1964.1,4.2353773]
[1772915039515,5.69821074,1964.5,1964.2,0.001]
[1772915039931,0.002,1964.4,1964.2,0.001]
[1772915041821,4.22380722,1964.4,1964.2,0.001]
[1772915042023,4.22380722,1964.4,1964.0,0.001]
[1772915042400,4.22380722,1964.4,1964.0,4.11907668]
[1772915044326,5.65789329,1964.3,1964.0,4.11907668]
[1772915049537,4.38517528,1964.2,1964.0,0.001]
[1772915050204,4.38517528,1964.3,1964.0,0.001]
[1772915050904,4.38517528,1964.3,1964.0,4.11907668]
[1772915052637,5.65794418,1964.3,1964.1,0.001]
[1772915053047,5.65994418,1964.3,1964.1,0.001]
[1772915056461,5.65994418,1964.3,1964.1,4.11907668]
[1772915056462,0.002,1964.3,1964.1,4.11907668]
[1772915056762,0.002,1964.5,1964.2,4.11807668]
[1772915057260,1.2745952,1964.5,1964.2,4.11807668]
[1772915058148,5.65977048,1964.5,1964.2,4.11807668]
[1772915062167,4.38517528,1964.4,1964.1,0.001]
[1772915062767,5.65786772,1964.4,1964.1,0.001]
[1772915063472,4.38517528,1964.3,1964.1,0.001]
[1772915063875,1.27463797,1964.5,1964.1,0.001]
[1772915064042,5.65981325,1964.5,1964.1,3.84282198]
[1772915064554,4.38517528,1964.4,1964.1,3.84282198]
[1772915064977,5.6578285,1964.4,1964.3,0.001]
[1772915065155,5.6598285,1964.4,1964.3,0.001]
[1772915066548,4.38517528,1964.3,1964.1,0.001]
[1772915067277,5.65792977,1964.3,1964.1,0.001]
[1772915068971,4.38517528,1964.2,1964.1,0.001]
[1772915069175,4.38517528,1964.2,1963.9,3.84229879]
[1772915069176,4.38517528,1964.2,1963.9,0.001]
[1772915069381,4.38517528,1964.0,1963.6,3.83894006]
[1772915070781,4.38517528,1964.2,1963.6,3.83894006]
[1772915071070,5.65792704,1964.3,1963.6,3.83894006]
[1772915071275,5.65792704,1964.3,1963.7,3.83737408]
[1772915071964,5.63591682,1964.3,1963.8,3.83209097]
[1772915072764,4.04770509,1964.2,1963.8,3.83209097]
[1772915074079,4.04770509,1964.2,1963.9,3.83289248]
[1772915075685,4.04970509,1964.4,1963.9,3.83289248]
[1772915075974,4.04770509,1964.3,1963.9,3.83289248]
[1772915076475,5.32046889,1964.3,1963.9,3.83289248]
[1772915076661,4.04770509,1964.2,1963.9,3.83289248]
[1772915076849,4.04770509,1964.2,1963.9,5.10586263]
[1772915077671,4.04770509,1964.2,1963.9,5.10696263]
[1772915077973,4.04870509,1964.2,1963.9,5.10696263]
[1772915079880,0.002,1964.4,1964.0,3.82641165]
[1772915080579,0.002,1964.4,1964.1,1.27284761]
[1772915080811,0.002,1964.4,1964.1,5.09925926]
[1772915081684,4.04970509,1964.4,1963.9,5.10415823]
[1772915081888,4.04970509,1964.4,1964.0,3.82915256]
[1772915082890,4.04970509,1964.4,1964.1,3.82810162]
[1772915083788,0.002,1964.4,1964.1,3.82810162]
[1772915083978,4.04970509,1964.4,1964.1,3.82810162]
[1772915090193,0.001,1964.3,1964.1,5.10094614]
[1772915093005,0.001,1964.3,1964.1,3.82810162]
[1772915094606,0.001,1964.3,1964.1,5.10093759]
[1772915095209,0.001,1964.3,1964.1,3.82810162]
[1772915096906,0.001,1964.3,1964.1,5.10094739]
[1772915097279,0.001,1964.3,1964.1,3.82810162]
[1772915098708,0.001,1964.3,1964.2,3.8026347]
[1772915098914,4.04770509,1964.8,1964.2,1.797]
[1772915099080,4.04770509,1964.9,1964.3,3.80151884]
[1772915100008,4.04770509,1964.9,1964.4,3.79949009]
[1772915100380,4.04770509,1964.9,1964.2,1.69]
[1772915100905,4.04770509,1964.9,1964.2,2.96277367]
[1772915100906,1.27239413,1964.8,1964.2,2.96277367]
[1772915101082,1.27239413,1964.8,1964.2,1.69]
[1772915101083,4.13131157,1964.7,1964.2,1.69]
[1772915101285,4.13131157,1964.7,1964.3,3.80084418]
[1772915101821,4.13131157,1964.7,1964.2,2.96387063]
[1772915101994,4.13131157,1964.7,1964.2,6.76355708]
[1772915102316,4.13131157,1964.7,1964.3,3.79409422]
[1772915102519,4.13131157,1964.7,1964.2,1.6911]
[1772915102988,4.40204872,1964.6,1964.2,2.96388198]
[1772915103332,4.40204872,1964.6,1964.2,1.27388198]
[1772915103513,4.40204872,1964.6,1964.2,0.0011]
[1772915105111,4.40204872,1964.4,1964.0,0.0011]
[1772915105609,4.40204872,1964.4,1964.0,3.79532601]
[1772915105915,4.40204872,1964.4,1964.0,5.0682166]
[1772915106283,4.40204872,1964.4,1964.0,3.79532601]
[1772915108521,1.27267113,1964.4,1964.0,3.79532601]
[1772915108726,4.40204872,1964.3,1964.0,3.79532601]
[1772915111914,4.40204872,1964.2,1964.0,0.0011]
[1772915112122,4.40204872,1964.2,1963.9,0.0011]
[1772915113597,4.40204872,1964.2,1964.1,0.001]
[1772915115531,5.67483153,1964.2,1964.1,0.001]
[1772915117233,4.40204872,1964.2,1964.1,0.001]
[1772915117531,4.40204872,1964.4,1964.1,3.7708277]
[1772915117928,1.27459955,1964.5,1964.1,3.7708277]
[1772915118133,5.6766488,1964.5,1964.1,3.7708277]
[1772915119341,4.40204872,1964.4,1964.1,3.7708277]
[1772915125752,4.40204872,1964.4,1964.1,5.04366577]
[1772915126242,0.002,1964.5,1964.2,3.73847422]
[1772915126542,0.002,1964.4,1964.2,3.73847422]
[1772915129441,0.002,1964.4,1964.3,1.27271801]
[1772915129740,0.002,1964.4,1964.3,5.00252724]
[1772915129941,0.002,1964.6,1964.4,3.72693456]
[1772915130441,4.40304872,1964.8,1964.4,3.72693456]
[1772915132551,4.40304872,1964.8,1964.5,1.27258844]
[1772915136946,4.40304872,1964.8,1964.5,4.97538754]
[1772915137262,4.40304872,1964.8,1964.5,3.7027991]
[1772915137437,4.40304872,1964.8,1964.4,1.27260236]
[1772915138249,4.40304872,1964.8,1964.6,0.001]
[1772915138423,4.08919441,1964.7,1964.6,0.001]
[1772915140325,0.002,1964.7,1964.6,0.001]
[1772915145068,4.08919441,1964.7,1964.6,0.001]
[1772915149251,0.002,1964.7,1964.6,0.001]
[1772915160281,0.002,1964.7,1964.6,3.63883641]
[1772915160575,3.98845532,1965.0,1964.7,3.63783641]
[1772915161080,3.98845532,1965.0,1964.6,3.63634002]
[1772915161551,3.98691646,1964.9,1964.6,3.63634002]
[1772915161752,3.98691646,1964.9,1964.6,0.001]
[1772915164282,4.11503044,1964.8,1964.6,0.001]
[1772915164461,4.11503044,1964.8,1964.4,0.001]
[1772915164784,4.11503044,1964.6,1964.4,0.001]
[1772915165988,4.11503044,1964.6,1964.5,0.001]
[1772915167968,5.38943251,1964.8,1964.5,0.001]
[1772915168167,4.11503044,1964.7,1964.5,0.001]
[1772915168678,5.38751159,1964.7,1964.5,0.001]
[1772915176602,5.09158213,1964.8,1964.5,3.52504709]
[1772915176603,0.002,1964.8,1964.5,3.52504709]
[1772915177797,0.002,1964.8,1964.6,0.001]
[1772915181316,4.11503044,1964.7,1964.6,0.001]
[1772915181482,4.11503044,1964.7,1964.5,0.001]
[1772915184619,0.002,1964.8,1964.5,0.001]
[1772915185120,4.11703044,1964.8,1964.5,0.001]
[1772915189025,5.38945703,1964.8,1964.5,0.001]
[1772915189214,5.38945703,1964.8,1964.6,0.001]
[1772915189417,0.002,1964.7,1964.6,0.001]
[1772915189732,4.11703044,1964.7,1964.5,0.001]
[1772915198310,0.002,1964.7,1964.5,3.16768553]
[1772915201434,0.002,1964.7,1964.6,0.001]
[1772915205568,3.81558915,1964.7,1964.6,0.001]
[1772915212249,0.002,1964.7,1964.6,0.001]
[1772915222254,0.002,1964.7,1964.6,2.86477608]
[1772915231682,0.002,1964.8,1964.7,2.76722664]
[1772915237583,0.002,1964.8,1964.7,4.03968553]
[1772915238082,0.00353886,1965.0,1964.9,2.70357424]
[1772915240091,0.00353886,1965.0,1964.8,1.27236537]
[1772915240404,3.74293674,1965.0,1964.7,3.95963619]
[1772915244194,0.00353886,1965.0,1964.7,1.27341032]
[1772915244394,0.00353886,1965.0,1964.7,2.65323601]
[1772915245815,3.74293674,1965.0,1964.7,2.65323601]
[1772915246616,3.74293674,1965.0,1964.8,1.27239413]
[1772915247910,0.00353886,1965.0,1964.8,3.89563012]
[1772915250014,0.00353886,1965.0,1964.8,3.89663012]
[1772915250310,0.002,1964.9,1964.8,3.89663012]
[1772915251329,3.75384268,1965.3,1965.0,2.59584852]
[1772915251619,3.75384268,1965.3,1965.0,3.86807987]
[1772915251620,0.0144448,1965.3,1965.0,3.86807987]
[1772915251826,0.0144448,1965.3,1965.1,2.58806747]
[1772915253219,3.67868212,1965.3,1965.0,1.27223135]
[1772915255807,3.67868212,1965.3,1965.0,3.83270338]
[1772915262736,0.002,1965.2,1965.1,0.001]
[1772915265803,3.66623732,1965.2,1965.0,0.001]
[1772915267137,3.66423732,1965.1,1965.0,0.001]
[1772915270636,3.66423732,1965.0,1964.8,0.001]
[1772915275952,3.66423732,1965.0,1964.9,0.001]
[1772915276622,3.66623732,1965.0,1964.9,0.001]
[1772915277038,3.66423732,1964.9,1964.7,0.001]
[1772915278815,3.66623732,1965.0,1964.7,2.40900748]
[1772915279118,3.66423732,1964.9,1964.7,0.001]
[1772915280349,0.002,1965.0,1964.7,2.39866922]
[1772915283029,0.002,1965.0,1964.8,1.27239413]
[1772915283357,0.002,1965.0,1964.7,3.67108037]
[1772915283830,0.002,1965.0,1964.8,2.37957776]
[1772915284952,3.36894743,1964.8,1964.6,0.001]
[1772915285122,3.36894743,1964.9,1964.6,2.3699398]
[1772915285525,3.36894743,1964.9,1964.6,0.001]
[1772915285717,2.86894743,1964.9,1964.6,0.001]
[1772915286754,2.86894743,1964.9,1964.5,0.001]
[1772915287126,3.36894743,1964.7,1964.5,0.001]
[1772915287649,3.36894743,1964.8,1964.5,2.87031634]
[1772915288758,3.36894743,1964.8,1964.7,0.001]
[1772915290454,0.002,1964.9,1964.7,0.001]
[1772915290631,3.37094743,1964.9,1964.7,0.001]
[1772915290832,4.64329287,1964.9,1964.7,0.001]
[1772915293657,3.37094743,1964.9,1964.7,0.001]
[1772915294159,4.64328715,1964.9,1964.7,0.001]
[1772915294361,3.37094743,1964.9,1964.7,0.001]
[1772915297352,4.64328655,1964.9,1964.7,0.001]
[1772915299136,1.27433912,1964.9,1964.7,0.001]
[1772915299352,3.36894743,1964.8,1964.7,0.001]
[1772915301649,3.37094743,1964.9,1964.7,0.001]
[1772915312380,0.002,1964.8,1964.7,0.001]
[1772915323977,0.002,1964.8,1964.7,2.6883449]
[1772915326117,0.002,1965.0,1964.8,2.67972619]
[1772915326401,0.002,1965.2,1964.8,2.67972619]
[1772915327272,0.002,1965.2,1964.9,2.67249916]
[1772915327697,3.47141391,1965.6,1964.9,2.67249916]
[1772915328090,3.47141391,1965.6,1965.1,2.6689083]
[1772915329807,4.74316509,1965.8,1965.1,2.6689083]
[1772915330017,3.47141391,1965.7,1965.1,2.6689083]
[1772915331519,3.47141391,1965.7,1965.3,2.65502537]
[1772915333516,4.74327621,1965.7,1965.1,2.64791473]
[1772915333718,3.47141391,1965.6,1965.1,2.64791473]
[1772915335682,3.47141391,1965.7,1965.2,1.27213515]
[1772915336019,3.47141391,1965.7,1965.3,2.64088581]
[1772915336185,3.47141391,1965.7,1965.2,1.27313515]
[1772915336385,3.47141391,1965.5,1965.2,1.27313515]
[1772915336589,3.47141391,1965.5,1965.2,3.91053739]
[1772915340707,0.002,1965.6,1965.3,2.62214927]
[1772915341901,3.51476129,1965.6,1965.3,2.62214927]
[1772915342213,3.51476129,1965.6,1965.2,3.8853146]
[1772915342419,3.51476129,1965.6,1965.2,1.27313515]
[1772915342793,3.51476129,1965.6,1965.3,2.61217945]
[1772915347010,3.29575625,1965.5,1965.2,1.27313175]
[1772915347734,3.29575625,1965.3,1965.0,0.001]
[1772915349514,1.27213515,1965.2,1965.0,0.001]
[1772915349829,3.29575625,1965.1,1965.0,0.001]
[1772915352127,4.56795613,1965.1,1965.0,0.001]
[1772915352636,3.29575625,1965.0,1964.7,0.001]
[1772915355336,3.29575625,1964.9,1964.7,0.001]
[1772915355523,3.29575625,1964.9,1964.5,1.27358035]
[1772915356019,3.29575625,1964.9,1964.5,3.84888377]
[1772915356637,3.29575625,1964.9,1964.5,1.27358035]
[1772915356936,3.29575625,1964.9,1964.5,0.001]
[1772915357320,3.29575625,1964.9,1964.5,3.84586569]
[1772915358648,1.27228367,1965.0,1964.6,2.56925875]
[1772915358808,4.56803992,1965.0,1964.6,2.56925875]
[1772915361440,3.29575625,1965.0,1964.6,3.84176384]
[1772915361744,3.29575625,1965.0,1964.7,2.55668638]
[1772915361945,4.56802247,1965.0,1964.7,2.55778638]
[1772915362349,4.56802247,1965.0,1964.7,0.0011]
[1772915364153,1.27226622,1965.0,1964.7,0.0011]
[1772915364354,3.29575625,1964.9,1964.7,0.0011]
[1772915365750,3.29575625,1964.9,1964.5,0.001]
[1772915366248,1.27239413,1964.8,1964.5,0.001]
[1772915366445,3.29575625,1964.7,1964.5,0.001]
[1772915368955,3.29575625,1964.6,1964.5,0.001]
[1772915372874,4.56827991,1964.6,1964.5,0.001]
[1772915373474,3.21956517,1965.1,1964.6,3.14155634]
[1772915373719,0.002,1964.9,1964.6,3.14155634]
[1772915380176,3.22156517,1964.9,1964.5,0.001]
[1772915380377,3.22156517,1964.9,1964.5,4.39010611]
[1772915380573,3.22156517,1964.9,1964.5,3.11752248]
[1772915381561,4.49391697,1964.9,1964.5,3.11752248]
[1772915385781,3.21956517,1964.8,1964.5,3.11752248]
[1772915385949,3.21956517,1964.8,1964.5,0.001]
[1772915386576,3.22156517,1964.8,1964.3,0.001]
[1772915386784,3.21956517,1964.6,1964.3,0.001]
[1772915388085,3.21956517,1964.6,1964.1,0.001]
[1772915388086,3.21956517,1964.5,1964.1,0.001]
[1772915388955,3.21956517,1964.3,1964.1,0.001]
[1772915390988,4.49234798,1964.2,1964.1,0.001]
[1772915391179,3.21956517,1964.1,1963.9,0.0011]
[1772915391370,3.21956517,1964.1,1963.6,3.09688248]
[1772915391587,3.21956517,1964.1,1963.6,0.0011]
[1772915392867,1.27291242,1964.0,1963.6,0.0011]
[1772915393093,3.21956517,1963.9,1963.6,0.0011]
[1772915395063,3.21956517,1963.8,1963.6,0.0011]
[1772915395263,3.21956517,1963.9,1963.6,3.09141538]
[1772915395583,3.21956517,1963.9,1963.6,0.0011]
[1772915397365,3.21956517,1963.7,1963.6,0.0011]
[1772915399191,3.21956517,1963.7,1963.4,0.0011]
[1772915399572,3.21956517,1963.6,1963.4,0.0011]
[1772915400385,3.25712016,1964.0,1963.4,3.08373401]
[1772915400896,3.25712016,1964.1,1963.4,3.08373401]
[1772915402793,3.16543831,1963.9,1963.5,1.27323656]
[1772915402998,3.16543831,1963.7,1963.1,4.34150425]
[1772915403298,3.16543831,1963.7,1963.1,4.75801832]
[1772915403799,3.16543831,1963.7,1963.2,3.06801832]
[1772915405999,3.16543831,1963.7,1963.3,4.33480419]
[1772915406306,4.43858103,1963.7,1963.3,3.06143792]
[1772915406473,3.16543831,1963.7,1963.3,3.06143792]
[1772915406672,3.16543831,1963.9,1963.3,3.06143792]
[1772915407001,4.43829868,1964.1,1963.3,3.06143792]
[1772915407171,4.43821455,1964.3,1963.4,3.05927523]
[1772915407695,1.27277624,1964.3,1963.4,3.05927523]
[1772915407890,3.16543831,1964.2,1963.4,3.05927523]
[1772915408972,3.16543831,1964.1,1963.5,1.27323656]
[1772915409602,3.16543831,1964.1,1963.6,3.05141803]
[1772915412478,3.16543831,1964.1,1963.7,1.27310689]
[1772915413305,3.16543831,1964.1,1963.7,4.31271069]
[1772915414090,4.43829745,1964.1,1963.7,3.0396038]
[1772915414606,3.16543831,1964.0,1963.7,4.31270748]
[1772915415683,0.001,1964.2,1963.8,3.0355575]
[1772915417709,0.001,1964.2,1963.9,3.03530673]
[1772915417913,3.16643831,1964.2,1963.7,4.30837438]
[1772915420083,3.16543831,1964.1,1963.7,1.27306765]
[1772915420496,3.16543831,1964.1,1963.7,4.30229411]
[1772915421890,3.16543831,1964.1,1963.6,2.96314278]
[1772915422218,3.16543831,1964.0,1963.6,2.96314278]
[1772915423139,3.16543831,1964.0,1963.6,5.98636289]
[1772915424634,3.16543831,1964.0,1963.6,4.29636289]
[1772915425120,3.16543831,1963.9,1963.6,3.02322011]
[1772915425790,3.16543831,1963.9,1963.5,2.96428792]
[1772915426316,3.16543831,1963.9,1963.5,5.9815984]
[1772915426695,3.16543831,1963.8,1963.5,1.6911]
[1772915427617,3.16543831,1963.8,1963.5,0.0011]
[1772915434023,3.16543831,1963.8,1963.5,2.99574924]
[1772915436730,3.16543831,1963.8,1963.5,4.26893414]
[1772915442024,3.43484918,1963.9,1963.6,2.97874075]
[1772915445327,0.001,1964.1,1963.7,2.96834803]
[1772915447308,0.001,1964.1,1963.9,2.96497326]
[1772915449705,0.001,1964.1,1964.0,4.23458718]
[1772915452529,0.001,1964.2,1964.0,1.27291242]
[1772915452741,0.001,1964.4,1964.1,2.94869594]
[1772915454014,3.43584918,1964.4,1963.9,2.94209369]
[1772915454348,3.43484918,1964.3,1963.8,4.21511975]
[1772915454839,3.43484918,1964.3,1963.9,2.94209369]
[1772915456846,3.43484918,1964.3,1964.0,4.21051858]
[1772915457340,0.001,1964.2,1964.0,4.21051858]
[1772915460846,3.10539963,1964.1,1963.5,0.0011]
[1772915461024,0.9089151,1964.2,1963.2,1.8011]
[1772915461025,3.10539963,1963.8,1963.2,1.8011]
[1772915461349,3.10539963,1963.8,1963.2,3.4922]
[1772915461534,3.10539963,1963.8,1963.2,1.6922]
[1772915461741,3.10539963,1963.6,1963.2,0.0011]
[1772915462952,3.23540293,1963.4,1963.2,0.0011]
[1772915464541,3.23540293,1963.4,1963.2,1.6922]
[1772915465753,4.50870656,1963.4,1963.2,1.6922]
[1772915465959,3.23540293,1963.4,1963.2,1.6922]
[1772915466455,4.50870886,1963.4,1963.2,1.6922]
[1772915466749,3.23540293,1963.3,1963.0,1.27614845]
[1772915466961,3.23540293,1963.3,1963.1,1.6911]
[1772915468166,3.23540293,1963.3,1963.1,0.0011]
[1772915468373,3.23540293,1963.3,1963.0,0.00263886]
[1772915468687,3.23540293,1963.3,1963.1,1.6911]
[1772915469579,3.23540293,1963.3,1963.2,0.0011]
[1772915469774,3.23640293,1963.3,1963.2,0.0011]
[1772915471591,3.23540293,1963.2,1963.0,0.00263886]
[1772915474186,0.001,1963.3,1963.1,2.9497513]
[1772915474560,0.001,1963.3,1963.2,1.6911]
[1772915474862,0.001,1963.3,1963.2,4.6397513]
[1772915475062,3.23540293,1963.8,1963.2,2.9486513]
[1772915475286,3.23540293,1963.8,1963.4,2.94523727]
[1772915475765,3.23540293,1963.7,1963.2,4.2186684]
[1772915475962,3.23540293,1963.7,1963.2,5.9087684]
[1772915477700,3.23540293,1963.6,1963.2,5.9087684]
[1772915479595,3.23540293,1963.6,1963.2,5.9076684]
[1772915479796,3.23540293,1963.6,1963.2,2.96243113]
[1772915479995,3.23540293,1963.6,1963.3,2.92857334]
[1772915480200,3.23540293,1963.8,1963.4,2.92857334]
[1772915480371,3.23540293,1963.8,1963.4,4.61867334]
[1772915480702,3.23540293,1963.8,1963.5,4.61867334]
[1772915480872,3.23540293,1963.8,1963.5,2.92857334]
[1772915481072,0.051,1964.2,1963.7,2.92528836]
[1772915481275,0.001,1964.2,1963.7,2.92528836]
[1772915481778,0.001,1964.2,1963.8,4.65202805]
[1772915481983,3.23640293,1964.2,1963.8,4.65202805]
[1772915482178,3.23640293,1964.2,1963.9,1.6901]
[1772915482405,3.23640293,1964.2,1963.7,1.27305486]
[1772915482705,3.23640293,1964.2,1963.8,1.6901]
[1772915484598,3.23540293,1964.1,1963.8,1.6901]
[1772915488886,3.23540293,1964.0,1963.8,1.6901]
[1772915489205,3.23540293,1964.0,1963.8,0.30730917]
[1772915490577,3.23540293,1963.9,1963.8,0.30730917]
[1772915493215,3.23640293,1963.9,1963.8,0.30730917]
[1772915497814,0.001,1963.9,1963.8,0.30730917]
[1772915498305,0.001,1963.9,1963.7,4.66660785]
[1772915498505,0.001,1963.9,1963.8,0.30730917]
[1772915499614,0.001,1963.9,1963.8,3.70081329]
[1772915501348,0.001,1963.9,1963.8,0.30730917]
[1772915502214,3.22184554,1963.9,1963.8,0.30730917]
[1772915502420,3.22184554,1963.9,1963.5,4.66669036]
[1772915504193,3.22184554,1963.9,1963.6,3.39350412]
[1772915505202,0.001,1963.8,1963.6,3.39350412]
[1772915505622,0.001,1963.8,1963.6,3.39460412]
[1772915509323,0.001,1963.8,1963.7,0.30730917]
[1772915512129,0.001,1963.8,1963.6,3.39460412]
[1772915512330,0.001,1963.8,1963.7,0.30730917]
[1772915514030,3.22184554,1963.8,1963.7,0.30730917]
[1772915515528,0.001,1963.8,1963.7,0.30730917]
[1772915515719,0.001,1963.8,1963.7,4.97392018]
[1772915515927,0.001,1963.8,1963.7,3.70081329]
[1772915517110,0.001,1963.8,1963.7,3.70191329]
[1772915518029,0.001,1963.8,1963.7,0.30840917]
[1772915518538,3.22184554,1963.8,1963.7,0.30840917]